Cogmind - Beta 17.1 @@@ ROGUE MODE // 2026.09.18 @ 17:15:54 Player: Caluan Result: Destroyed by P-70 Sage with High-powered Shock Rifle Performance ------------- Evolutions (5) 2500 Regions Visited (17) 3400 Robots Destroyed (201) 1005 Value Destroyed (9104) 9104 Prototype IDs (3) 60 Alien Tech Used (0) 0 Bonus (4266) 4266 TOTAL SCORE: 20335 Bonus ------- High Alert Combat Kills 351 Follower Combat Kills 815 Entered Garrisons 600 Used RIF Installer 2500 Cogmind --------- Core Integrity 0/1000 Matter 294/300 Energy 300/310 System Corruption 8% Temperature Cool (0) Movement Core (1750) Ox34 Location -5/Factory Parts ------- > --- POWER (1) -------- Reinforced Fission Core > --- PROPULSION (4) --- (None) > --- UTILITY (8) ------ Huge Storage Unit Advanced Targeting Computer Advanced Targeting Computer Core Analyzer Armor Integrity Analyzer Improved Core Shielding Relay Coupler [Sentry] (12) > --- WEAPON (4) ------- (None) > --- INVENTORY (25) --- Improved Deuterium Engine Micro Fission Core Improved Cooling System High-capacity Battery (250) Seismic Detector Transmission Jammer Relay Coupler [Heavy] (12) Relay Coupler [Heavy] (13) Relay Coupler [Heavy] (13) Relay Coupler [Heavy] (13) Relay Coupler [Behemoth] (9) Relay Coupler [Behemoth] (10) High-powered Tractor Beam Improved Datajack Improved Remote Datajack Improved Remote Datajack Improved Plasma Cutter Peak State ------------ > --- POWER ------------ Antimatter Reactor > --- PROPULSION ------- Armored Treads Armored Treads Armored Treads Medium Treads > --- UTILITY ---------- Huge Storage Unit Advanced Targeting Computer Core Analyzer Armor Integrity Analyzer Graphene Brace Relay Coupler [NC] > --- WEAPON ----------- Gauss Rifle Gauss Rifle Gauss Rifle Heavy Machine Gun > --- INVENTORY -------- Improved Deuterium Engine Improved Deuterium Engine Medium Treads Medium Treads Medium Treads Medium Treads Medium Treads Medium Treads Improved Cooling System High-capacity Battery High-capacity Matter Pod Seismic Detector Transmission Jammer Relay Coupler [Brawler] Relay Coupler [Sentry] Relay Coupler [Heavy] Relay Coupler [Behemoth] High-powered Tractor Beam Flak Gun Flak Gun Proton Missile Launcher Improved Datajack Improved Remote Datajack Great Axe [Rating: 66] Favorites ----------- Power Improved Deuterium Engine Engine Improved Deuterium Engine Power Core Light Nuclear Core Reactor Antimatter Reactor Propulsion Light Treads Treads Light Treads Leg Carbon-fiber Leg Wheel Armored Wheel Utility Huge Storage Unit Device Disposable Heat Sink Storage Huge Storage Unit Processor Advanced Targeting Computer Hackware Relay Coupler [Sentry] Protection Hardened Medium Armor Plating Weapon Assault Rifle Energy Gun Particle Gun Ballistic Gun Assault Rifle Launcher Proton Missile Launcher Special Weapon Remote Datajack Impact Weapon Maul Slashing Weapon Great Axe Special Melee Weapon Improved Datajack Build | -11 -10 -10 -9 -9 -9 -8 -8 -8 -8 -7 -7 -7 -6 -6 -6 -6 -5 ------- Run | Yrd Mat Min Mat Min Exi Min Mat Gar Mat Fac Gar Fac Fac Was Fac Gar Fac Slots Evolved 10 | . . . 2 . . . 2 . . 2 . . 2 . . . 2 Power . | . . . . . . . . . . . . . . . . . . Propulsion 2 | . . . 1 . . . . . . . . . 1 . . . . Utility 6 | . . . 1 . . . 1 . . 1 . . 1 . . . 2 Weapon 2 | . . . . . . . 1 . . 1 . . . . . . . Parts Attached 162 | 6 4 4 25 4 . . 24 3 5 24 9 11 2 10 1 13 17 Power 17 | 1 1 . 2 . . . 2 1 . 3 . . . 2 . 2 3 Engine 10 | 1 1 . 2 . . . 1 . . 2 . . . 1 . 1 1 Core 6 | . . . . . . . 1 1 . 1 . . . . . 1 2 Reactor 1 | . . . . . . . . . . . . . . 1 . . . Propulsion 55 | 2 . 1 11 1 . . 6 2 3 7 3 3 1 6 . 2 7 Treads 40 | 2 . 1 11 1 . . 5 1 3 4 2 3 1 6 . . . Leg 4 | . . . . . . . . . . . . . . . . 2 2 Wheel 11 | . . . . . . . 1 1 . 3 1 . . . . . 5 Hover . | . . . . . . . . . . . . . . . . . . Flight . | . . . . . . . . . . . . . . . . . . Utility 40 | 1 3 1 2 2 . . 5 . 1 5 3 4 1 . 1 5 6 Device 9 | . 1 1 1 . . . 1 . . 2 1 1 . . . . 1 Storage 5 | 1 2 . . 1 . . . . . . . . . . . 1 . Processor 10 | . . . . 1 . . 4 . 1 1 . 1 1 . . . 1 Hackware 13 | . . . . . . . . . . 2 1 2 . . 1 4 3 Protection 3 | . . . 1 . . . . . . . 1 . . . . . 1 Artifact . | . . . . . . . . . . . . . . . . . . Weapon 50 | 2 . 2 10 1 . . 11 . 1 9 3 4 . 2 . 4 1 Energy Gun 3 | . . 1 1 . . . . . . . . . . . . 1 . Energy Cannon . | . . . . . . . . . . . . . . . . . . Ballistic Gun 38 | 2 . 1 8 1 . . 9 . 1 7 2 2 . 2 . 2 1 Ballistic Cannon . | . . . . . . . . . . . . . . . . . . Launcher 4 | . . . . . . . 1 . . 2 . 1 . . . . . Special Weapon 2 | . . . . . . . . . . . . 1 . . . 1 . Impact Weapon 1 | . . . 1 . . . . . . . . . . . . . . Slashing Weapon 1 | . . . . . . . . . . . 1 . . . . . . Piercing Weapon . | . . . . . . . . . . . . . . . . . . Special Melee Weapon 1 | . . . . . . . 1 . . . . . . . . . . Unidentified Prototypes 3 | . . . 1 . . . 1 . . . . . . . . . 1 Corrupted Parts 2 | . . . . . . . . . . . . . . . . 2 . System Corruption 10 | . . . . . . . . . . . . . . . . 10 . Parts Lost 77 | . . 2 7 . . . 12 1 3 17 . 1 . 5 . 9 20 Power 8 | . . . 1 . . . 2 1 . 1 . . . 1 . 1 1 Propulsion 27 | . . 1 1 . . . 3 . 1 5 . 1 . 2 . 4 9 Utility 10 | . . . 2 . . . 1 . 1 2 . . . . . 1 3 Weapon 32 | . . 1 3 . . . 6 . 1 9 . . . 2 . 3 7 Highest Loss Streak 9 | . . 2 6 . . . 3 1 3 9 . 1 . 5 . 6 6 To Critical Strikes 1 | . . . . . . . . . . 1 . . . . . . . Average Backups 18 | 1 7 10 14 15 16 16 21 24 24 21 24 24 24 19 15 19 18 Power . | . 1 1 . . . . . . . . . 1 1 1 1 1 1 Propulsion 3 | . 1 1 2 4 4 4 6 6 4 5 7 7 6 3 1 . . Utility 6 | . 1 3 2 2 2 2 5 7 8 8 10 11 11 9 9 14 11 Weapon 5 | . 2 3 8 8 9 9 8 10 9 6 3 3 4 3 2 2 2 Tool/Special . | . . . . . . . . . . . . . . . . . . Unused Backups 26 | . . . 2 . . . 8 . . . . . . 1 . 2 13 Power 3 | . . . 1 . . . . . . . . . . . . . 2 Propulsion 3 | . . . . . . . 3 . . . . . . . . . . Utility 11 | . . . . . . . . . . . . . . 1 . 2 8 Weapon 4 | . . . . . . . 4 . . . . . . . . . . Tool/Special 5 | . . . 1 . . . 1 . . . . . . . . . 3 Average Slot Usage (%) 90 | . 94 99 97 99 100 100 90 99 99 94 94 99 88 87 81 67 68 Engine 6 | . 14 14 10 11 11 11 2 . . 2 7 7 6 5 6 3 . Core 2 | . . . . . . . 4 8 9 3 . . . . . 2 4 Treads 20 | . 28 27 32 33 33 33 18 18 18 18 17 16 26 22 20 7 . Leg 1 | . . . . . . . . . . . . . . . . 6 5 Wheel 3 | . . . . . . . 8 9 7 4 4 5 . . . . 7 Device 4 | . 8 14 12 5 . . . . . . 7 5 1 6 4 . . Storage 8 | . 14 14 11 11 11 11 9 9 9 7 7 7 6 6 6 6 4 Processor 13 | . . . . 5 11 11 20 27 27 20 7 14 14 20 20 20 22 Hackware 3 | . . . . . . . . . . 5 7 8 6 6 7 9 7 Protection 2 | . . . 7 11 11 11 . . . . 4 . . . . . . Ballistic Gun 20 | . 28 15 20 22 22 22 26 27 27 28 23 24 20 17 13 4 . Peak Build Rating 66 | 6 9 9 17 15 15 15 41 40 42 49 53 56 63 66 54 59 56 Average Rating 31 | 4 7 8 14 14 15 15 27 39 40 42 50 52 54 55 52 41 45 On Entrance 31 | . 6 9 9 15 15 15 15 40 40 42 42 53 50 63 52 54 44 Avg Prop Armor Cover (%) 15 | . . . . . . . 16 17 18 11 15 17 . . . . 10 Naked Turns . | . . . . . . . . . . . . . . . . . . Heaviest Build 118 | 11 30 32 45 103 103 103 105 94 94 103 115 115 107 114 102 106 118 Greatest Support 112 | 40 40 40 60 60 60 60 60 12 60 60 60 68 88 88 84 112 36 Greatest Overweight (x) 30 | . . 1 . 1 1 1 8 9 9 9 7 7 1 1 1 30 29 Average Overweight (x) 2 | . . . . . 1 1 6 8 8 2 5 5 1 . 1 2 4 Largest Inventory Capacity 25 | 8 15 15 15 25 25 25 25 25 25 25 25 25 25 25 25 25 25 Average Capacity 21 | 7 10 15 15 18 25 25 25 25 25 25 25 25 25 25 25 25 24 Most Carried 25 | 2 10 11 15 16 16 16 25 25 25 25 25 25 25 24 19 25 21 Average Carried 18 | 1 7 10 14 15 16 16 21 24 24 21 24 24 24 20 18 20 18 Final Capacity 25 | 8 15 15 15 25 25 25 25 25 25 25 25 25 25 25 25 25 25 Final Carried 25 | 2 10 10 15 16 16 16 25 25 25 20 25 25 23 19 17 20 17 Class Distribution -------------------- 21% | Scavenger-Gunner 19% | Mutant 14% | Scavenger-Mutant 12% | Gunner 10% | Bothacker-Gunner 9% | Botlord-Mutant 8% | Bothacker-Mutant Dominant Class ---------------- Mutant | -10/Materials Mutant | -10/Mines Mutant | -9/Materials Scavenger-Mutant | -9/Mines Scavenger-Mutant | -9/Exiles Scavenger-Mutant | -8/Mines Gunner | -8/Materials Gunner | -8/Garrison Scavenger-Gunner | -8/Materials Scavenger-Gunner | -7/Factory Scavenger-Gunner | -7/Garrison Bothacker-Gunner | -7/Factory Bothacker-Gunner | -6/Factory Bothacker-Mutant | -6/Waste Bothacker-Mutant | -6/Factory Bothacker-Mutant | -6/Garrison Botlord-Mutant | -5/Factory Resources | -11 -10 -10 -9 -9 -9 -8 -8 -8 -8 -7 -7 -7 -6 -6 -6 -6 -5 ----------- Run | Yrd Mat Min Mat Min Exi Min Mat Gar Mat Fac Gar Fac Fac Was Fac Gar Fac Matter Collected 7362 | 206 400 107 780 60 . 35 1516 373 267 1140 . 757 . 537 . 730 454 Remotely 213 | . . . . . . . . . . 213 . . . . . . . Salvage Created 8332 | . 453 75 1387 13 . 71 2334 550 368 1019 . 450 . 604 . 224 784 Parts 461 | . 35 5 90 3 . 8 132 30 25 58 . 20 . 1 . 16 38 Haulers Intercepted 7 | . 2 . 4 . . . 1 . . . . . . . . . . Recyclers Shooed 6 | . . . . . . . . . . . . 2 . . . . 4 Parts Field Recycled . | . . . . . . . . . . . . . . . . . . Retrieved Matter . | . . . . . . . . . . . . . . . . . . Parts Self-Destructed . | . . . . . . . . . . . . . . . . . . Prevented . | . . . . . . . . . . . . . . . . . . Parts Restored . | . . . . . . . . . . . . . . . . . . Kills | -11 -10 -10 -9 -9 -9 -8 -8 -8 -8 -7 -7 -7 -6 -6 -6 -6 -5 ------- Run | Yrd Mat Min Mat Min Exi Min Mat Gar Mat Fac Gar Fac Fac Was Fac Gar Fac Combat Hostiles Destroyed 167 | . 11 2 28 . . 4 46 10 6 27 . 8 . 3 . 7 15 Melee 3 | . . . . . . . . . . . . . . . . . 3 Guns 151 | . 11 2 28 . . 4 42 10 6 20 . 7 . 3 . 7 11 AOE 13 | . . . . . . . 4 . . 7 . 1 . . . . 1 Classes Destroyed 20 | . 5 . 3 1 . . 5 . . 4 . . . 1 . . 1 Worker 7 | . 1 . 3 . . . 2 . . 1 . . . . . . . Builder 1 | . . . . . . . . . . . . . . . . . 1 Tunneler 2 | . . . . 1 . . 1 . . . . . . . . . . Hauler 7 | . 2 . 4 . . . 1 . . . . . . . . . . Recycler 3 | . . . . . . . 1 . . . . 1 . . . . 1 Mechanic 2 | . . . . . . . 1 . . . . . . . . . 1 Operator 5 | . . . 1 . . . 1 . 1 . . 1 . . . . 1 Watcher 7 | . 2 . 3 . . . 1 . . 1 . . . . . . . Swarmer 32 | . 6 . 6 . . 4 12 . . . . 1 . . . . 3 Grunt 63 | . 5 2 13 . . . 17 8 . 7 . 4 . . . 1 6 Brawler 2 | . . . 1 . . . . . . 1 . . . . . . . Duelist 1 | . . . . . . . . . . 1 . . . . . . . Protector 2 | . . . . . . . . . . 2 . . . . . . . Sentry 24 | . . . 8 . . . 9 2 2 3 . . . . . . . Demolisher 2 | . . . . . . . . . . 1 . 1 . . . . . Specialist 12 | . . . . . . . 6 . 2 2 . . . . . 2 . Hunter 7 | . . . . . . . 1 . 1 5 . . . . . . . Programmer 16 | . . . . . . . . . . 4 . 2 . . . 4 6 Heavy 3 | . . . . . . . 1 . 1 1 . . . . . . . Compactor 3 | . . . . . . . . . . . . . . 3 . . . Best Kill Streak 11 | . 4 2 7 1 . 4 6 7 4 11 . 3 . 2 . 3 6 Combat Bots Only 11 | . 4 2 6 . . 4 5 7 4 11 . 3 . 2 . 3 6 Max Kills in Single Turn 4 | . 1 1 2 1 . 1 2 1 1 4 . 1 . 1 . 1 2 Gunslinging 1 | . . . 1 . . . 1 . . 1 . . . . . . . Exploded 4 | . . . . . . . 2 . . 4 . 1 . . . . 1 Melee 1 | . . . . . . . . . . . . . . . . . 1 Uniques/NPCs Destroyed . | . . . . . . . . . . . . . . . . . . Combat | -11 -10 -10 -9 -9 -9 -8 -8 -8 -8 -7 -7 -7 -6 -6 -6 -6 -5 -------- Run | Yrd Mat Min Mat Min Exi Min Mat Gar Mat Fac Gar Fac Fac Was Fac Gar Fac Hostile Shots Fired 1180 | . 54 31 142 4 . 9 199 37 50 307 . 36 . 5 18 101 187 Missed 321 | . 15 7 41 . . 1 40 11 18 96 . 5 . . 7 29 51 Hits 859 | . 39 24 101 4 . 8 159 26 32 211 . 31 . 5 11 72 136 Melee 7 | . . . 1 . . . . . . 1 . . . 5 . . . Projectile 852 | . 39 24 100 4 . 8 159 26 32 210 . 31 . . 11 72 136 AOE 12 | . . . 1 . . . . . . 9 . 1 . . . . 1 Critical Strikes 27 | . 1 . 2 1 . . 3 1 1 4 . 1 . 1 . 1 11 Actively Blocked 3 | . . . . . . . . . . 1 . . . 1 . . 1 Damage Taken 13406 | . 420 229 1411 58 . 70 2435 386 686 3020 . 501 . 196 91 1240 2663 Core 2253 | . 70 18 133 . . . 285 43 144 354 . 46 . . 22 126 1012 Absorbed by Shields 205 | . 42 87 39 . . . . . . . . 37 . . . . . Redirected to Shielding 63 | . . . . . . . . . . . . . . . . . 63 Regen/Repaired (Parts) 743 | . . . 136 . . . 80 . . . . . . . . . 527 Core Remaining (%) 61 | 100 . 64 . . . 66 . . 14 . . 42 . . . 82 . Volleys Fired 532 | . 69 12 90 1 . 5 108 30 19 53 4 23 . 25 2 42 49 Largest 4 | . 2 2 2 2 . 2 3 3 3 4 1 4 . 4 1 2 2 Hottest 114 | . 40 40 85 43 . 43 75 75 75 107 28 112 . 114 7 56 97 Shots Fired 1283 | . 138 24 180 2 . 10 318 88 57 200 4 68 . 78 3 61 52 Gun 1254 | . 138 24 180 2 . 10 315 88 57 194 4 63 . 78 1 50 50 Cannon . | . . . . . . . . . . . . . . . . . . Launcher 18 | . . . . . . . 3 . . 6 . 2 . . . 5 2 Special 11 | . . . . . . . . . . . . 3 . . 2 6 . Kinetic 1230 | . 138 24 170 2 . 10 315 88 57 194 4 63 . 78 1 50 36 Thermal 24 | . . . 10 . . . . . . . . . . . . . 14 Explosive 6 | . . . . . . . . . . 6 . . . . . . . Electromagnetic 12 | . . . . . . . 3 . . . . 2 . . . 5 2 Robot Hit Streak 34 | . 12 8 27 1 . 5 22 34 21 10 . 5 . 18 3 9 16 Robot Miss Streak 14 | . 11 2 3 1 . 1 3 2 4 5 . 9 . 4 2 14 6 Penetration Max 1 | . . . . . . . . . . 1 . 1 . . . . 1 Secondary Targets 29 | . 2 1 7 . . . 8 1 2 7 . . . 1 . . . Max Gunslinging Chain 1 | . 1 1 1 . . . 1 1 1 1 . . . 1 . . . Shots Hit Robots 968 | . 80 18 141 1 . 5 227 69 44 149 4 35 . 67 2 53 73 Core Hits 525 | . 27 6 58 1 . 4 111 30 15 100 . 22 . 28 . 51 72 Critical Kills 4 | . . . 1 . . . 2 . 1 . . . . . . . . Critical Parts Destroyed 5 | . . . 1 . . . 2 . 1 . . . . 1 . . . Critical Strikes 14 | . . . 2 . . . 4 . 2 . . . . 3 . . 3 Burn 1 | . . . . . . . . . . . . . . . . . 1 Destroy 11 | . . . 2 . . . 4 . 2 . . . . 3 . . . Sever 2 | . . . . . . . . . . . . . . . . . 2 Melee Attacks 49 | . . . . . . . . . . 5 5 4 . . . 9 26 Impact . | . . . . . . . . . . . . . . . . . . Slashing 26 | . . . . . . . . . . . 1 . . . . 9 16 Piercing . | . . . . . . . . . . . . . . . . . . Sneak Attacks 13 | . . . . . . . . . . 1 4 1 . . . . 7 Combat Hostiles . | . . . . . . . . . . . . . . . . . . Follow-up Attacks . | . . . . . . . . . . . . . . . . . . Damage Inflicted 17745 | . 898 207 2046 32 . 82 3511 1177 688 4096 . 671 . 1496 . 1007 1834 Guns 14562 | . 879 202 2021 16 . 66 3174 1177 688 2412 . 598 . 1496 . 758 1075 Cannons . | . . . . . . . . . . . . . . . . . . Explosions 2377 | . . . . . . . 334 . . 1672 . 73 . . . 168 130 Melee 710 | . . . . . . . . . . . . . . . . 81 629 Ramming 96 | . 19 5 25 16 . 16 3 . . 12 . . . . . . . Kinetic 14199 | . 879 202 1915 16 . 66 3174 1177 688 2412 . 598 . 1496 . 758 818 Thermal 363 | . . . 106 . . . . . . . . . . . . . 257 Explosive 1846 | . . . . . . . 174 . . 1672 . . . . . . . Electromagnetic 531 | . . . . . . . 160 . . . . 73 . . . 168 130 Impact . | . . . . . . . . . . . . . . . . . . Slashing 710 | . . . . . . . . . . . . . . . . 81 629 Piercing . | . . . . . . . . . . . . . . . . . . Highest Corruption 53 | . 2 2 . . . . . . . 5 5 5 . 40 40 53 8 Average Corruption 16 | . 2 2 . . . . . . . 2 5 4 . 22 40 50 3 Corruption Purged 5 | . . . . . . . . . . . . 5 . . . . . Corruption Blocked . | . . . . . . . . . . . . . . . . . . Effects 266 | . 23 10 . . . . . . . 14 31 18 . 28 4 119 19 Message Errors 78 | . 10 1 . . . . . . . 3 10 7 . 6 1 33 7 Matter Fused 67 | . 5 4 . . . . . . . 4 7 4 . 6 1 31 5 Heat Flow Errors 23 | . 2 . . . . . . . . 2 1 . . 4 1 11 2 Energy Discharges 31 | . 4 1 . . . . . . . 2 4 2 . 1 . 15 2 Parts Rejected 2 | . . . . . . . . . . . . . . . . 2 . Parts Fused 2 | . . . . . . . . . . . . . . 1 . 1 . Data Loss (minor) 30 | . 1 3 . . . . . . . 2 4 3 . 3 . 11 3 Data Loss (major) 15 | . 1 1 . . . . . . . . 4 2 . 2 . 5 . Misfires 6 | . . . . . . . . . . 1 . . . 1 1 3 . Alerts 2 | . . . . . . . . . . . 1 . . . . 1 . Misdirections 3 | . . . . . . . . . . . . . . . . 3 . Weapon Failures 7 | . . . . . . . . . . . . . . 4 . 3 . Overload Shots . | . . . . . . . . . . . . . . . . . . Overflow Damage 48 | . . . . . . . 26 . . . . . . . . . 22 Projectiles . | . . . . . . . . . . . . . . . . . . Explosions 26 | . . . . . . . 26 . . . . . . . . . . Melee 22 | . . . . . . . . . . . . . . . . . 22 Knockbacks 2 | . 1 . 1 . . . . . . . . . . . . . . Impact 2 | . 1 . 1 . . . . . . . . . . . . . . Kinetic . | . . . . . . . . . . . . . . . . . . Secondary . | . . . . . . . . . . . . . . . . . . Self-Inflicted Damage 58 | . . . . . . . 22 . . . . . . . . . 36 Shots 3 | . . . . . . . 1 . . . . . . . . . 2 Rammed 16 | . 4 1 3 1 . 2 2 . . 2 . . . . . . 1 Targets Rammed 18 | . 4 1 5 1 . 2 2 . . 2 . . . . . . 1 Kicked . | . . . . . . . . . . . . . . . . . . Crushed 2 | . . . 2 . . . . . . . . . . . . . . Highest Temperature 345 | . 298 14 153 22 . . 288 345 194 303 140 78 . 259 86 254 213 Average Temperature 71 | . 110 9 38 14 . . 41 175 78 79 74 22 . 70 57 103 66 Received Heat Transfer 3232 | . 188 120 476 36 . . 864 225 . 396 . 153 . . 36 171 567 Effects 9 | . . . . . . . 1 6 . . . . . 1 . 1 . Energy Bleed 2 | . . . . . . . 1 . . . . . . 1 . . . Interference 7 | . . . . . . . . 6 . . . . . . . 1 . Siege Activations . | . . . . . . . . . . . . . . . . . . Martial Activations . | . . . . . . . . . . . . . . . . . . Shielding Activations . | . . . . . . . . . . . . . . . . . . Robots Disrupted . | . . . . . . . . . . . . . . . . . . Combat Hostiles . | . . . . . . . . . . . . . . . . . . Robots Corrupted . | . . . . . . . . . . . . . . . . . . Combat Hostiles . | . . . . . . . . . . . . . . . . . . Parts Fried . | . . . . . . . . . . . . . . . . . . Impact Corruptions . | . . . . . . . . . . . . . . . . . . Robots Melted . | . . . . . . . . . . . . . . . . . . Combat Hostiles . | . . . . . . . . . . . . . . . . . . Parts Melted . | . . . . . . . . . . . . . . . . . . Heat Transferred 802 | . . . 247 . . . . . . . . . . . . . 555 Parts Sabotaged . | . . . . . . . . . . . . . . . . . . Parts Stolen . | . . . . . . . . . . . . . . . . . . Parts Stripped . | . . . . . . . . . . . . . . . . . . Power Chain Reactions . | . . . . . . . . . . . . . . . . . . Alert | -11 -10 -10 -9 -9 -9 -8 -8 -8 -8 -7 -7 -7 -6 -6 -6 -6 -5 ------- Run | Yrd Mat Min Mat Min Exi Min Mat Gar Mat Fac Gar Fac Fac Was Fac Gar Fac Maximum Alert Level 3 | . . . 1 . . . 2 2 1 1 3 2 . . . 3 2 Low Security (%) 48 | 100 100 100 54 100 . 100 44 . . 77 . . 100 100 100 16 28 Level 1 24 | . . . 45 . . . 23 19 100 22 34 19 . . . 14 62 Level 2 25 | . . . . . . . 31 80 . . 45 80 . . . 67 9 Level 3 1 | . . . . . . . . . . . 19 . . . . 1 . Level 4 . | . . . . . . . . . . . . . . . . . . Level 5 . | . . . . . . . . . . . . . . . . . . High Security . | . . . . . . . . . . . . . . . . . . Max Security . | . . . . . . . . . . . . . . . . . . Peak Influence 813 | . 97 50 358 121 . 90 605 635 324 371 813 499 192 28 . 775 416 Initial 426 | . . . . 121 . . 31 371 309 135 244 426 192 28 . . 406 Average 252 | . 16 4 203 41 . 5 302 527 286 99 516 422 137 1 . 443 277 Influence Increases 6714 | . 314 50 877 5 . 90 1384 274 232 852 569 502 . . . 985 580 Destroy 0b10 Robot/C 3680 | . 220 40 560 . . 80 920 200 120 580 . 300 . . . 360 300 Destroy 0b10 Robot/NC 195 | . 25 . 55 5 . . 40 . 5 20 . 25 . . . . 20 Destroy Leader 830 | . 58 10 164 . . 10 234 10 50 142 . 62 . . . 20 70 Allied During Kill 119 | . . . . . . . . . . 13 . 67 . . . 39 . Successful Hack 180 | . 9 . 5 . . . 24 14 41 48 14 . . . . . 25 Disable Machine 240 | . . . . . . . 30 . 15 30 . 45 . . . . 120 Anti-Garrison Action 1150 | . . . . . . . . 50 . . 550 . . . . 550 . Destroy Structure 80 | . 2 . 3 . . . 31 . 1 19 5 3 . . . 16 . Lose Combat Pursuer 240 | . . . 90 . . . 105 . . . . . . . . . 45 Influence Decreases 6598 | . 314 50 565 317 . 10 892 211 570 800 105 921 312 82 . 210 1239 Entered New Map 2046 | . . . . 191 . . 49 201 326 162 105 387 202 54 . . 369 Time Decay 3509 | . 314 50 525 126 . 10 723 . 214 455 . 464 110 28 . . 490 Lost Part 670 | . . . 40 . . . 120 10 30 170 . 10 . . . 90 200 Lost Ally 223 | . . . . . . . . . . 13 . 60 . . . 120 30 Purge Threat 150 | . . . . . . . . . . . . . . . . . 150 Squads Dispatched 36 | . 2 . 3 . . . 9 . 2 9 . 6 . . . . 5 Investigation 3 | . 1 . 1 . . . . . . . . 1 . . . . . Extermination 6 | . . . . . . . . . . 2 . 2 . . . . 2 Reinforcement 23 | . 1 . 2 . . . 9 . 2 4 . 2 . . . . 3 Assault 1 | . . . . . . . . . . . . 1 . . . . . Garrison 3 | . . . . . . . . . . 3 . . . . . . . Intercept . | . . . . . . . . . . . . . . . . . . Searches Triggered . | . . . . . . . . . . . . . . . . . . Construction Impeded 2 | . . . . . . . 1 . . . . . . . . . 1 Haulers Reinforced . | . . . . . . . . . . . . . . . . . . Active Scanning Responses . | . . . . . . . . . . . . . . . . . . Cargo Convoy Interrupts 1 | . . . . . . . . . . 1 . . . . . . . Alert ID Control Effect 6 | . . . . . . . . . . . . . . . . . 6 Stealth | -11 -10 -10 -9 -9 -9 -8 -8 -8 -8 -7 -7 -7 -6 -6 -6 -6 -5 --------- Run | Yrd Mat Min Mat Min Exi Min Mat Gar Mat Fac Gar Fac Fac Was Fac Gar Fac Distress Signals 15 | . . . 5 . . . 6 . . . . 2 . . . . 2 Communications Jammed . | . . . . . . . . . . . . . . . . . . Distress Signals . | . . . . . . . . . . . . . . . . . . Times Spotted 306 | . 20 2 49 1 . 4 81 10 8 42 . 24 . 6 1 22 36 Peak Tracking Total 13 | . 5 2 6 2 . 4 6 5 3 13 . 6 . 3 1 4 7 Tactical Retreats 12 | . . . 5 . . . 5 . . . . . . . . . 2 Traps | -11 -10 -10 -9 -9 -9 -8 -8 -8 -8 -7 -7 -7 -6 -6 -6 -6 -5 ------- Run | Yrd Mat Min Mat Min Exi Min Mat Gar Mat Fac Gar Fac Fac Was Fac Gar Fac Traps Triggered 21 | . 3 . 3 . . . . 1 . 3 1 1 1 . . 8 . Indirectly 3 | . . . . . . . . . . . . 1 . . . 2 . Trap Hack Attempts 7 | . . . . . . . 7 . . . . . . . . . . Triggered . | . . . . . . . . . . . . . . . . . . Disarmed 1 | . . . . . . . 1 . . . . . . . . . . Reprogrammed . | . . . . . . . . . . . . . . . . . . Reused . | . . . . . . . . . . . . . . . . . . Traps Extracted . | . . . . . . . . . . . . . . . . . . Installed . | . . . . . . . . . . . . . . . . . . Triggered . | . . . . . . . . . . . . . . . . . . Machines | -11 -10 -10 -9 -9 -9 -8 -8 -8 -8 -7 -7 -7 -6 -6 -6 -6 -5 ---------- Run | Yrd Mat Min Mat Min Exi Min Mat Gar Mat Fac Gar Fac Fac Was Fac Gar Fac Machines Disabled 24 | . . . . . . . 2 1 1 2 3 3 . . . 4 8 Max in Single Turn 2 | . . . . . . . 2 1 1 1 1 . . . . 1 . Garrison Relay 9 | . . . . . . . . 1 . . 3 . . . . 5 . Machines Repaired . | . . . . . . . . . . . . . . . . . . Machines Dismantled . | . . . . . . . . . . . . . . . . . . Machines Sabotaged . | . . . . . . . . . . . . . . . . . . Overloaded Fab Kills . | . . . . . . . . . . . . . . . . . . Hacking | -11 -10 -10 -9 -9 -9 -8 -8 -8 -8 -7 -7 -7 -6 -6 -6 -6 -5 --------- Run | Yrd Mat Min Mat Min Exi Min Mat Gar Mat Fac Gar Fac Fac Was Fac Gar Fac Machines Accessed 49 | . 3 . 8 . . . 13 2 3 6 2 4 1 . 1 1 5 Terminals 33 | . 3 . 4 . . . 9 2 3 2 2 3 1 . . 1 3 Fabricators 3 | . . . . . . . . . . 2 . 1 . . . . . Repair Stations 4 | . . . 2 . . . 1 . . . . . . . . . 1 Recycling Units 1 | . . . . . . . . . . 1 . . . . . . . Scanalyzers 5 | . . . 2 . . . 2 . . . . . . . . . 1 Garrison Access 3 | . . . . . . . 1 . . 1 . . . . 1 . . Total Hacks 90 | . 3 . 13 . . . 25 3 10 6 3 7 3 . 1 3 13 Successful 49 | . 3 . 10 . . . 14 1 5 4 1 2 . . 1 . 8 Failed 40 | . . . 2 . . . 11 2 5 2 2 5 3 . . 3 5 Catastrophic 7 | . . . 1 . . . 2 . 1 1 . 1 . . . 1 . Database Lockouts 1 | . . . 1 . . . . . . . . . . . . . . Manual 44 | . 3 . 5 . . . 15 . 9 4 . 4 . . . . 4 Terminals 61 | . 3 . 5 . . . 19 3 10 2 3 4 3 . . 3 6 Fabricators 5 | . . . . . . . . . . 2 . 3 . . . . . Repair Stations 9 | . . . 4 . . . 2 . . . . . . . . . 3 Recycling Units 1 | . . . . . . . . . . 1 . . . . . . . Scanalyzers 11 | . . . 4 . . . 3 . . . . . . . . . 4 Garrison Access 3 | . . . . . . . 1 . . 1 . . . . 1 . . Terminal Hacks 7 | . . . . . . . 1 1 2 1 1 . . . . . 1 Level Access Points 1 | . . . . . . . . . 1 . . . . . . . . Branch Access Points 1 | . . . . . . . . . . 1 . . . . . . . Terminal Index 1 | . . . . . . . . . 1 . . . . . . . . Unreport Threat 1 | . . . . . . . . . . . . . . . . . 1 Zone Layout 1 | . . . . . . . 1 . . . . . . . . . . Garrison Registry 2 | . . . . . . . . 1 . . 1 . . . . . . Fabricator Hacks 1 | . . . . . . . . . . . . 1 . . . . . Network Status 1 | . . . . . . . . . . . . 1 . . . . . Repair Station Hacks 8 | . . . 4 . . . 2 . . . . . . . . . 2 Scan Component 4 | . . . 2 . . . 1 . . . . . . . . . 1 Repair 4 | . . . 2 . . . 1 . . . . . . . . . 1 Recycling Unit Hacks . | . . . . . . . . . . . . . . . . . . Scanalyzer 9 | . . . 3 . . . 3 . . . . . . . . . 3 Insert Component 1 | . . . 1 . . . . . . . . . . . . . . Analyze 1 | . . . 1 . . . . . . . . . . . . . . Retrieve Study 7 | . . . 1 . . . 3 . . . . . . . . . 3 Garrison Access Hacks 3 | . . . . . . . 1 . . 1 . . . . 1 . . Unlock Access 3 | . . . . . . . 1 . . 1 . . . . 1 . . Unauthorized Hacks 21 | . 3 . 3 . . . 7 . 3 2 . 1 . . . . 2 Terminals 20 | . 3 . 3 . . . 7 . 3 1 . 1 . . . . 2 Track 1 | . . . . . . . 1 . . . . . . . . . . Botnet 19 | . 3 . 3 . . . 6 . 3 1 . 1 . . . . 2 Fabricators 1 | . . . . . . . . . . 1 . . . . . . . Fabnet 1 | . . . . . . . . . . 1 . . . . . . . Repair Stations . | . . . . . . . . . . . . . . . . . . Recycling Units . | . . . . . . . . . . . . . . . . . . Scanalyzers . | . . . . . . . . . . . . . . . . . . Garrison Access . | . . . . . . . . . . . . . . . . . . Data Cores Recovered 2 | . . . . . . . . . 1 . . 1 . . . . . Used . | . . . . . . . . . . . . . . . . . . Hacking Detections 34 | . 1 . 3 . . . 10 2 1 4 2 4 1 . 1 1 4 Full Trace Events 2 | . . . . . . . . . . . . 1 . . . 1 . Feedback Events . | . . . . . . . . . . . . . . . . . . Feedback Blocked . | . . . . . . . . . . . . . . . . . . Robot Schematics Acquired . | . . . . . . . . . . . . . . . . . . Robots Built . | . . . . . . . . . . . . . . . . . . Authchips . | . . . . . . . . . . . . . . . . . . Time . | . . . . . . . . . . . . . . . . . . Total Robot Build Rating . | . . . . . . . . . . . . . . . . . . Part Schematics Acquired 1 | . . . 1 . . . . . . . . . . . . . . Parts Built . | . . . . . . . . . . . . . . . . . . Authchips . | . . . . . . . . . . . . . . . . . . Time . | . . . . . . . . . . . . . . . . . . Total Part Build Rating . | . . . . . . . . . . . . . . . . . . Part Studies Acquired 7 | . . . 1 . . . 3 . . . . . . . . . 3 Parts Repaired 4 | . . . 2 . . . 1 . . . . . . . . . 1 Time 103 | . . . 58 . . . 32 . . . . . . . . . 13 Parts Recycled . | . . . . . . . . . . . . . . . . . . Recycled Matter . | . . . . . . . . . . . . . . . . . . Retrieved Matter . | . . . . . . . . . . . . . . . . . . Retrieved Components . | . . . . . . . . . . . . . . . . . . Parts Scanalyzed 1 | . . . 1 . . . . . . . . . . . . . . Part Schematics Acquired 1 | . . . 1 . . . . . . . . . . . . . . Parts Damaged . | . . . . . . . . . . . . . . . . . . Bothacking | -11 -10 -10 -9 -9 -9 -8 -8 -8 -8 -7 -7 -7 -6 -6 -6 -6 -5 ------------ Run | Yrd Mat Min Mat Min Exi Min Mat Gar Mat Fac Gar Fac Fac Was Fac Gar Fac Used RIF Installer 5 | . . . . . . . . 1 . . 2 . . . . 2 . Code Merge 1 | . . . . . . . . . . . . . . . . 1 . Signal Jammer 1 | . . . . . . . . . . . 1 . . . . . . Zone Cloak 1 | . . . . . . . . . . . 1 . . . . . . Alert ID Control 1 | . . . . . . . . . . . . . . . . 1 . Robots Hacked 22 | . . . . . . . . . . 4 . 5 . . 1 7 5 Non-combat 3 | . . . . . . . . . . 1 . 1 . . . . 1 Combat 19 | . . . . . . . . . . 3 . 4 . . 1 7 4 Robot Hacks Applied 22 | . . . . . . . . . . 4 . 5 . . 1 6 6 find_chute 1 | . . . . . . . . . . 1 . . . . . . . disable_weapons 1 | . . . . . . . . . . . . . . . . . 1 reboot_system 1 | . . . . . . . . . . . . . . . . 1 . overwrite_iff 3 | . . . . . . . . . . . . . . . . . 3 streamctrl_high 1 | . . . . . . . . . . 1 . . . . . . . formatsys_low 1 | . . . . . . . . . . . . . . . . . 1 formatsys_high 14 | . . . . . . . . . . 2 . 5 . . 1 5 1 Relay Couplers Released 36 | . . . . . . . . 4 . . 12 . . . . 20 . Machine Destruction 36 | . . . . . . . . 4 . . 12 . . . . 20 . Attached 13 | . . . . . . . . . . 2 1 2 . . 1 4 3 Merged Code Value 6 | . . . . . . . . . . . . . . . . 6 . Fabnet Peak Effective % 3 | . . . . . . . . . . . . . 3 3 3 3 1 Autooverrided 1 | . . . . . . . . . . . . . . . . 1 . Robots Rewired 3 | . . . . . . . . . . . 3 . . . . . . Allies Hacked 2 | . . . . . . . . . . . . 1 . . . 1 . Hacks Repelled . | . . . . . . . . . . . . . . . . . . Allies | -11 -10 -10 -9 -9 -9 -8 -8 -8 -8 -7 -7 -7 -6 -6 -6 -6 -5 -------- Run | Yrd Mat Min Mat Min Exi Min Mat Gar Mat Fac Gar Fac Fac Was Fac Gar Fac Total Allies 23 | . . . . . . . . . . 3 3 5 . . 1 6 5 Largest Group 5 | . . . . . . . . . . 2 3 5 2 2 1 3 2 Highest-Rated Group 112 | . . . . . . . . . . 32 60 112 72 72 32 87 58 Highest-Rated Ally 41 | . . . . . . . . . . 32 32 40 40 40 32 37 41 Total Orders 4 | . . . . . . . . . . . . 2 2 . . . . STAY 2 | . . . . . . . . . . . . 1 1 . . . . FOLLOW 2 | . . . . . . . . . . . . 1 1 . . . . Ally Attacks 168 | . . . . . . . . . . 23 . 46 . 22 . 61 16 Total Damage 4306 | . . . . . . . . . . 470 . 1235 . 1077 . 915 609 Kills 37 | . . . . . . . . . . 4 . 13 . 3 . 11 6 Allies Corrupted 1 | . . . . . . . . . . . . . . 1 . . . Allies Melted . | . . . . . . . . . . . . . . . . . . Intel | -11 -10 -10 -9 -9 -9 -8 -8 -8 -8 -7 -7 -7 -6 -6 -6 -6 -5 ------- Run | Yrd Mat Min Mat Min Exi Min Mat Gar Mat Fac Gar Fac Fac Was Fac Gar Fac Active Infowar (turns) 1229 | . . 539 153 . . . 44 . . 226 . 267 . . . . . Seismic 1003 | . . 539 153 . . . 44 . . . . 267 . . . . . Machine Analysis 226 | . . . . . . . . . . 226 . . . . . . . Robot Analysis Total . | . . . . . . . . . . . . . . . . . . Derelict Logs Recovered 3 | . . 2 . 1 . . . . . . . . . . . . . Drone Launches . | . . . . . . . . . . . . . . . . . . Drone Recoveries . | . . . . . . . . . . . . . . . . . . Exploration | -11 -10 -10 -9 -9 -9 -8 -8 -8 -8 -7 -7 -7 -6 -6 -6 -6 -5 ------------- Run | Yrd Mat Min Mat Min Exi Min Mat Gar Mat Fac Gar Fac Fac Was Fac Gar Fac Turns Passed 19260 | 72 1733 606 2423 402 732 392 3733 567 453 1502 1167 1165 236 569 91 2128 1289 Spaces Moved 7882 | 40 909 347 1188 218 306 156 1293 230 180 563 537 503 93 194 36 600 489 Core 15 | 4 . . . . . . . . . . . . . . . 3 8 Treads 4373 | 36 909 347 1188 218 306 156 87 . 15 302 136 94 93 194 36 256 . Legs 397 | . . . . . . . . . . . . . . . . 341 56 Wheels 3097 | . . . . . . . 1206 230 165 261 401 409 . . . . 425 Hover . | . . . . . . . . . . . . . . . . . . Flight . | . . . . . . . . . . . . . . . . . . Fastest Speed 50 | 50 160 160 160 160 240 240 195 195 215 135 190 190 247 160 240 160 86 Average Speed 203 | 149 160 162 160 179 240 240 211 205 217 201 210 201 247 241 240 321 191 Slowest Speed 1550 | 160 160 240 160 240 240 240 480 215 250 490 250 246 247 247 240 1550 1500 Overloaded Moves . | . . . . . . . . . . . . . . . . . . Propulsion Burnouts . | . . . . . . . . . . . . . . . . . . Robots Hopped . | . . . . . . . . . . . . . . . . . . Potential Cave-ins . | . . . . . . . . . . . . . . . . . . Cave-ins Triggered . | . . . . . . . . . . . . . . . . . . Exploration Rate (%) 46 | 4 97 74 96 34 62 41 97 32 20 15 79 17 3 99 2 45 14 Regions Visited 17 Branch Regions 4 Pre-discovered Areas 2 | . . 2 . . . . . . . . . . . . . . . Known Exits Taken 4 | . . . . . . . 1 . 1 1 . . . . 1 . . Unknown Exits Taken 8 | 1 1 1 1 1 1 1 . . . . . 1 . . . . . Scrap Searched 2 | . . 1 . 1 . . . . . . . . . . . . . Spaces Dug 1 | . . . . . . . . . . . . . . . . 1 . Terrain Destroyed 62 | . . . . . . . 30 . . 29 . 1 . 1 . 1 . Melee 1 | . . . . . . . . . . . . . . . . 1 . Projectile 2 | . . . . . . . . . . . . 1 . 1 . . . AOE 59 | . . . . . . . 30 . . 29 . . . . . . . Terrain Rammed . | . . . . . . . . . . . . . . . . . . Walls Destroyed . | . . . . . . . . . . . . . . . . . . Machines Disabled . | . . . . . . . . . . . . . . . . . . Actions | -11 -10 -10 -9 -9 -9 -8 -8 -8 -8 -7 -7 -7 -6 -6 -6 -6 -5 --------- Run | Yrd Mat Min Mat Min Exi Min Mat Gar Mat Fac Gar Fac Fac Was Fac Gar Fac Total 10158 | 53 1061 365 1531 228 305 162 2090 289 218 817 570 606 99 239 41 730 754 Wait 1218 | . 63 . 179 . . . 600 24 10 132 2 45 2 7 2 19 133 Move 7864 | 39 908 346 1187 217 305 155 1292 228 179 563 535 502 93 193 35 598 489 Hop . | . . . . . . . . . . . . . . . . . . Pick Up 146 | 8 10 2 17 1 . . 33 2 4 17 10 4 1 2 . 13 22 Fast Attach 42 | . 1 . 9 1 . . 5 1 1 1 1 3 . . . 9 10 Attach 92 | 6 . 2 6 . . . 14 1 4 18 3 3 3 9 1 10 12 Detach 13 | . . . . . . . 2 . . 1 . 1 . . . 6 3 Swap 77 | . 3 2 17 3 . . 11 1 . 14 6 12 . 2 1 1 4 Drop 75 | . 3 . 21 4 . . 16 2 1 8 4 6 . 1 . 6 3 Fire 532 | . 69 12 90 1 . 5 108 30 19 53 4 23 . 25 2 42 49 Melee 49 | . . . . . . . . . . 5 5 4 . . . 9 26 Ram 1 | . . . . . . . . . . . . . . . . . 1 Kick . | . . . . . . . . . . . . . . . . . . Crush 16 | . 4 1 5 1 . 2 2 . . 1 . . . . . . . Escape Stasis 18 | . . . . . . . . . . 2 . . . . . 16 . Rewire 8 | . . . . . . . . . . 2 . 3 . . . 1 2 Trap 7 | . . . . . . . 7 . . . . . . . . . . Miscellaneous . | . . . . . . . . . . . . . . . . . . Route ------- -11/Scrapyard -10/Materials (discovered 5 exits: *Mat x3 / [*Min] / [*Sub]) -10/Mines -9/Materials (discovered 4 exits: *Mat x3 / [*Min]) -9/Mines -9/Exiles -8/Mines -8/Materials (discovered 4 exits: *Fac x3 / Gar) -8/Garrison (discovered 3 exits: *Mat x3) -8/Materials (discovered 3 exits: *Fac x3) -7/Factory (discovered 4 exits: Sto / Low x2 / Gar) -7/Garrison (discovered 4 exits: *Fac x4) -7/Factory -6/Factory -6/Waste -6/Factory -6/Garrison -5/Factory History --------- Turn | Location | Event 50 | -11/Scrapyard | Discovered new exit (range 12) 73 | -11/Scrapyard | Entered Materials 287 | -10/Materials | Discovered new exit (range 10) 302 | -10/Materials | Build established: Mutant 518 | -10/Materials | Discovered new exit (range 6) 952 | -10/Materials | Discovered new exit (range 8) 1360 | -10/Materials | Discovered new exit (range 11) 1384 | -10/Materials | Discovered new exit (range 13) 1806 | -10/Materials | Entered Mines 1954 | -10/Mines | Found a hidden stash of uninstalled traps 1969 | -10/Mines | Learned location of Mines (-8) 2037 | -10/Mines | Discovered new exit (range 9) 2048 | -10/Mines | Received a Rocket Launcher from a helpful Derelict 2189 | -10/Mines | Learned location of Storage (-7) 2412 | -10/Mines | Entered Materials 2412 | -9/Materials | Evolved 2 slots: Propulsion x1, Utility x1 2599 | -9/Materials | Lost 6 parts (1p1n1u3w) 2946 | -9/Materials | Discovered new exit (range 10) 3321 | -9/Materials | Discovered new exit (range 11) 3354 | -9/Materials | Repaired Imp. Ion Engine 3511 | -9/Materials | Central database locked down 3624 | -9/Materials | Repaired Lgt. Treads 3854 | -9/Materials | Discovered new exit (range 15) 4084 | -9/Materials | Build established: Scavenger-Mutant 4427 | -9/Materials | Discovered new exit (range 10) 4835 | -9/Materials | Entered Mines 4943 | -9/Mines | Deemed a non-threat by the Exiles lab entrance 4943 | -9/Mines | Discovered new exit (range 5) 5003 | -9/Mines | Joined a pair of Derelicts in attacking an 0b10 outpost 5095 | -9/Mines | Learned Materials emergency access door positions 5237 | -9/Mines | Entered Exiles 5293 | -9/Exiles | Met 8R-AWN 5333 | -9/Exiles | Met EX-HEX 5444 | -9/Exiles | Met EX-DEC 5585 | -9/Exiles | Met EX-BIN 5943 | -9/Exiles | Discovered new exit (range 14) 5969 | -9/Exiles | Entered Mines 6347 | -8/Mines | Discovered new exit (range 7) 6361 | -8/Mines | Entered Materials 6361 | -8/Materials | Evolved 2 slots: Utility x1, Weapon x1 6649 | -8/Materials | Build established: Scavenger-Gunner 7295 | -8/Materials | Build established: Gunner 7950 | -8/Materials | Lost 3 parts (1p1n1w) 7981 | -8/Materials | Build established: Scavenger-Gunner 7994 | -8/Materials | Repaired Arm. Wheel 8825 | -8/Materials | Discovered new exit (range 5) 8972 | -8/Materials | Build established: Gunner 9109 | -8/Materials | Discovered new exit (range 13) 9352 | -8/Materials | Core integrity fell below 50% 9987 | -8/Materials | Discovered new exit (range 9) 10093 | -8/Materials | Identified exit to Garrison 10094 | -8/Materials | Entered Garrison 10271 | -8/Garrison | Destroyed 7 combat bots 10352 | -8/Garrison | Discovered new exit (range 68) 10352 | -8/Garrison | Discovered new exit (range 32) 10352 | -8/Garrison | Discovered new exit (range 34) 10479 | -8/Garrison | Installed Relay Interface Framework 10530 | -8/Garrison | Triggered checkpoint 10556 | -8/Garrison | Garrison Relay disabled 10661 | -8/Garrison | Entered Materials 10690 | -8/Materials | Build established: Scavenger-Gunner 10907 | -8/Materials | Identified exit to Factory 11063 | -8/Materials | Core integrity fell below 20% 11088 | -8/Materials | Lost 3 parts (1n1u1w) 11114 | -8/Materials | Entered Factory 11114 | -7/Factory | Evolved 2 slots: Utility x1, Weapon x1 11263 | -7/Factory | Identified exit to Storage 11263 | -7/Factory | Identified exit to Lower Caves 12256 | -7/Factory | Garrison activated, responded to threat 12257 | -7/Factory | Cargo convoy interrupted 12259 | -7/Factory | P-60 Hacker assimilated allied Guardian 4a 12310 | -7/Factory | Destroyed 11 combat bots 12314 | -7/Factory | Lost 9 parts (1p3n1u4w) 12586 | -7/Factory | Lost 4 parts (1n3w) 12613 | -7/Factory | Identified exit to Garrison 12616 | -7/Factory | Core integrity fell below 50% 12616 | -7/Factory | Entered Garrison 12616 | -7/Garrison | Discovered recently destroyed garrison 12816 | -7/Garrison | Garrison Relay disabled 12992 | -7/Garrison | Discovered new exit (range 14) 13023 | -7/Garrison | Discovered new exit (range 7) 13023 | -7/Garrison | Discovered new exit (range 53) 13023 | -7/Garrison | Discovered new exit (range 73) 13023 | -7/Garrison | Discovered new exit (range 54) 13087 | -7/Garrison | Garrison Relay disabled 13240 | -7/Garrison | Garrison Relay disabled 13402 | -7/Garrison | Build established: Scavenger-Tank 13427 | -7/Garrison | Expanded RIF knowledge: Zone Cloak 13490 | -7/Garrison | Expanded RIF knowledge: Signal Jamming 13705 | -7/Garrison | Build established: Bothacker-Tank 13783 | -7/Garrison | Entered Factory 13783 | -7/Factory | Accompanied by 3 allies 14158 | -7/Factory | Build established: Bothacker-Gunner 14583 | -7/Factory | First assault squad dispatched 14726 | -7/Factory | Lost 3 allies 14919 | -7/Factory | Discovered new exit (range 7) 14948 | -7/Factory | Entered another Factory area 14948 | -6/Factory | Accompanied by 2 allies 14948 | -6/Factory | Evolved 2 slots: Propulsion x1, Utility x1 15184 | -6/Factory | Manually triggered Chute Trap 15184 | -6/Factory | Sucked down chute 15184 | -6/Factory | Entered Waste 15199 | -6/Waste | EMP discharged 15234 | -6/Waste | 2 allies followed down the chute 15239 | -6/Waste | Spotted C-40 Crusher 15252 | -6/Waste | Allies destroyed C-40 Crusher 15299 | -6/Waste | EMP discharged 15299 | -6/Waste | System corruption reached 10% 15330 | -6/Waste | Spotted C-40 Crusher 15346 | -6/Waste | Destroyed C-40 Crusher 15383 | -6/Waste | Spotted C-40 Crusher 15399 | -6/Waste | EMP discharged 15405 | -6/Waste | Allies destroyed C-40 Crusher 15408 | -6/Waste | Allies destroyed C-40 Crusher 15417 | -6/Waste | Crushed by Compactor (1 part destroyed, 1 dropped) 15420 | -6/Waste | Crushed by Compactor (1 part destroyed, 2 dropped) 15423 | -6/Waste | Crushed by Compactor (1 part destroyed, 2 dropped) 15425 | -6/Waste | Spotted C-40 Crusher 15425 | -6/Waste | Spotted C-40 Crusher 15427 | -6/Waste | Crushed by Compactor (1 part destroyed, 1 dropped) 15430 | -6/Waste | Crushed by Compactor (1 part destroyed, 1 dropped) 15461 | -6/Waste | Lost 5 parts (1p2n2w) 15469 | -6/Waste | Destroyed C-40 Crusher 15479 | -6/Waste | Destroyed C-40 Crusher 15499 | -6/Waste | EMP discharged 15522 | -6/Waste | Found Damper Plating 15599 | -6/Waste | EMP discharged 15599 | -6/Waste | System corruption reached 30% 15699 | -6/Waste | EMP discharged 15724 | -6/Waste | Build established: Bothacker-Mutant 15724 | -6/Waste | Discovered new exit (range 11) 15753 | -6/Waste | Entered Factory 15842 | -6/Factory | Identified exit to Garrison 15844 | -6/Factory | Entered Garrison 15844 | -6/Garrison | Accompanied by 1 ally 16010 | -6/Garrison | Triggered checkpoint 16073 | -6/Garrison | Garrison Relay disabled 16204 | -6/Garrison | Garrison Relay disabled 16257 | -6/Garrison | Garrison Relay disabled 16268 | -6/Garrison | Garrison Relay disabled 16402 | -6/Garrison | Triggered checkpoint 16440 | -6/Garrison | Triggered checkpoint 16571 | -6/Garrison | Triggered checkpoint 16609 | -6/Garrison | Lost 6 parts (3n3w) 16811 | -6/Garrison | Discovered new exit (range 14) 17340 | -6/Garrison | Expanded RIF knowledge: Code Merge 17536 | -6/Garrison | Triggered checkpoint 17610 | -6/Garrison | Build established: Botlord-Mutant 17942 | -6/Garrison | Expanded RIF knowledge: Alert ID Control 17972 | -6/Garrison | Entered Factory 17972 | -5/Factory | Evolved 2 slots: Utility x2 18371 | -5/Factory | P-70 Sage assimilated allied Soldier 6a 18379 | -5/Factory | Lost 5 parts (3n1u1w) 18414 | -5/Factory | Core integrity fell below 50% 18452 | -5/Factory | Lost 5 parts (1p1n2u1w) 18626 | -5/Factory | Core integrity fell below 20% 18879 | -5/Factory | Repaired Huge Storage Unit 19261 | -5/Factory | Destroyed by P-70 Sage with High-powered Shock Rifle Last Messages --------------- 19243_ Destroyed Tesla Rifle. 19245_ Com. Wheel+ destroyed. 19246_ K-01 Serf cleans the DSF Access. 19246_ P-70 Sage resets M-13 Machinist, system corruption cleaned. 19249_ K-01 Serf cleans the DSF Access. 19250_ M-13 Machinist destroyed. 19250_ Door malfunctions. 19252_ G-50 Soldier destroyed. 19252_ O-24 Administrator destroyed. 19255_ System corrupted: Energy discharge (-73). 19255_ Proton Missile Launcher destroyed. 19256_ R-10 Processor collects Corrupted Imp. Hover Unit. 19257_ Great Axe destroyed. 19258_ Slammed into P-70 Sage. 19258_ U-05 Engineer repairs door. 19258_ R-10 Processor collects Corrupted Unknown Processor. 19260_ U-05 Engineer lays Concrete. Map ----- +----------------------------------------------------+ | ???????????????????????????# # # ### | | ???????????????????????????# # # #?#######+ | | ???????????????????????????# ########+#######??# | | ???????????????????????????# #?# #### | | ???????????????????????????# #?# """ """ + | | ???????????????????????????# #?# """ """ ### | | ???????????????????????????# #?# """ """ #?# | | ???????????????????????????# #?# #?# | | ???????????????????????????# ################?# | | ???????????????????????????# ## #???# | | ???????????????????????????# ## "" #???# | | ???????????????????????????# ## ""S #???# | | ???????????????????????????# ## "" #???# | | ???????????????????????????# ## #???# | | ???????????????????????????# ## #???# | | ???????????????????????????# ## | #???# | | ???????????????????????????# ## """""" #???# | | ???????????????????????????# ## """""" #???# | | ???????????????????????????# ## """""" #???# | | ?????????????###############*## """""" #???# | | ?????????????# ##=## #???#!! | | ?????????????# ##[## #???#!! | | ?????????????# ##%########+######### | | ?????????????# #! | | ?????????????# u# | | ? #????????# ! !% @/R !!! | | /????????# Rp# !!! ######## ##/## | | #????????# % # !!! T#?????# # | | #????????# # #?????# # | | #????????# # ##?????# # "" | | ###+##???# # #??????# # "" | | ??################ ]!! #??????# # "T | | ??# ### ]! ########## # "" | | """ # ! """##^ !! # # # "" | | Y" # T"## # ! # # ?? | | " " # """##^ + [ # ##??# | | ] # """ ##^ #### # ????? | | # """ ## #??# """ # ????? | | # """ #### ###??# "R # ????? | | # #??# #????# """ # ????? | | # """ """ #??# #????# "" #?????? | | # """ """ #??# #????# #?????? | | # """ """ #??# #????#+########?????? | | % % # #?## ##???# ?????????????? | | %###+#####+###### ##### #????????????? | | " ????????? | | % ######### #####+#????????????? | | #???????##/##??????????????????? | | #???????# ??????????????????? | | #???????# ]]! ????????????????? | +----------------------------------------------------+ Best States ------------- Heat Dissipation 40 Coolant Potential 50 Energy Generation 21 Energy Capacity 560 Matter Stores 300 Matter Capacity 300 Sight Range 16 Terrain Scan Density 10 Armor Coverage 225 Core Shielding 30 Evasion (%) 40 Targeting Accuracy 16 Core Analysis 6 Armor Integrity Analysis 30 Recoil Reduction 4 Relay Coupler Types 3 Relay Coupler Value 49 Item Schematics ----------------- Seismic Detector | -9/Materials | Scanalyzed Robot Schematics ------------------ None Fabricated ------------ Nothing Repaired ---------- Imp. Ion Engine | 4% | -9/Materials Lgt. Treads | 50% | -9/Materials Arm. Wheel | 20% | -8/Materials Huge Storage Unit | 12% | -5/Factory Studied --------- Assault Rifle | -9/Materials | Hacked Imp. Datajack | -8/Materials | Hacked Hvy. Assault Rifle | -8/Materials | Hacked Minigun | -8/Materials | Hacked Gauss Rifle | -5/Factory | Hacked Wheel | -5/Factory | Hacked Com. Wheel | -5/Factory | Hacked Alien Tech Used ----------------- None Achievements -------------- None Challenges ------------ None Game ------ Seed HellfireSchematicMembrane Manual? 0 Play Time 01:53:55 Cumulative 285.2 hours Start 2026.09.18 @ 14:57:26 End 2026.09.18 @ 17:15:54 Sessions 1 Manual Loads 0 Difficulty Rogue Special Mode None Game No. 308 Rogue 308 Adventurer 0 Explorer 0 Win Type - Total 3 Types 3/0/0/0/0/0/0/0/0/0 Lore% 33 Gallery% 57 Achievement% 40 Wizard Run 0 Options --------- Layout 1 ASCII 0 Keyboard 0 Movement Numpad Keybinds 0 Fullscreen 2 Font 24/Smallcaps Map View 50x35 Zoom Use 0% Tactical HUD 1 Map Filters NONE Filters NONE Steam 1 RUN: 7ce650bd-77a9-4be4-a4e7-2cf8fbde68ad